bitfinex/quotes_BTCUSD_20241103
["timestamp","ask_amount","ask_price","bid_price","bid_amount"]
[1730611276387,1.2160512,68617.0,68616.0,1e-06]
[1730611276592,1.21605519,68617.0,68616.0,1e-06]
[1730611276802,1.36188093,68617.0,68616.0,1e-06]
[1730611277241,1.37588093,68617.0,68616.0,1e-06]
[1730611278069,1.37560938,68617.0,68616.0,1e-06]
[1730611279429,1.41907931,68617.0,68616.0,1e-06]
[1730611279635,1.37560938,68617.0,68616.0,1e-06]
[1730611280078,1.36248774,68617.0,68616.0,1e-06]
[1730611280342,1.441164,68617.0,68616.0,1e-06]
[1730611281254,1.45827761,68617.0,68616.0,1e-06]
[1730611281680,1.50175167,68617.0,68616.0,1e-06]
[1730611282455,1.34867782,68617.0,68616.0,1e-06]
[1730611282732,1.50159059,68617.0,68616.0,1e-06]
[1730611283348,1.50158541,68617.0,68616.0,1e-06]
[1730611283556,1.50158551,68617.0,68616.0,1e-06]
[1730611286406,1.50158551,68617.0,68605.0,0.001648]
[1730611286407,0.257759,68606.0,68605.0,0.001648]
[1730611286598,0.86279332,68606.0,68605.0,0.001648]
[1730611286828,1.38059866,68606.0,68605.0,0.001648]
[1730611287024,1.47181989,68606.0,68605.0,0.001648]
[1730611287405,1.3629765,68606.0,68605.0,0.001648]
[1730611287604,1.50560146,68606.0,68605.0,0.001648]
[1730611287936,1.51960146,68606.0,68605.0,0.001648]
[1730611288300,1.56306023,68606.0,68605.0,0.001648]
[1730611288506,1.7076723,68606.0,68605.0,0.001648]
[1730611288709,1.57706023,68606.0,68605.0,0.001648]
[1730611289114,1.56306023,68606.0,68605.0,0.001648]
[1730611289277,1.7076723,68606.0,68605.0,0.001648]
[1730611289511,1.56306023,68606.0,68605.0,0.001648]
[1730611289719,1.57706023,68606.0,68605.0,0.001648]
[1730611290372,1.563439,68606.0,68605.0,0.001648]
[1730611290610,1.5770512,68606.0,68605.0,0.001648]
[1730611291802,1.70762117,68606.0,68605.0,0.001648]
[1730611292207,1.5770512,68606.0,68605.0,0.001648]
[1730611293040,1.70760598,68606.0,68605.0,0.001648]
[1730611293270,1.5770512,68606.0,68605.0,0.001648]
[1730611294342,1.57704164,68606.0,68605.0,0.001648]
[1730611294549,1.70754842,68606.0,68605.0,0.001648]
[1730611295417,1.57704164,68606.0,68605.0,0.001648]
[1730611295610,1.70754842,68606.0,68605.0,0.001648]
[1730611295810,1.57704164,68606.0,68605.0,0.001648]
[1730611297527,1.57703823,68606.0,68605.0,0.001648]
[1730611298669,1.57696677,68606.0,68605.0,0.001648]
[1730611298879,1.53357946,68606.0,68605.0,0.001648]
[1730611299091,1.5769668,68606.0,68605.0,0.001648]
[1730611299716,1.53357946,68606.0,68605.0,0.001648]
[1730611300134,1.45491123,68606.0,68605.0,0.001648]
[1730611300346,1.53357946,68606.0,68605.0,0.001648]
[1730611300570,1.57696942,68606.0,68605.0,0.001648]
[1730611301003,1.5746025,68606.0,68605.0,0.001648]
[1730611301207,1.56100327,68606.0,68605.0,0.001648]
[1730611301425,1.57460556,68606.0,68605.0,0.001648]
[1730611304964,1.49593733,68606.0,68605.0,0.001648]
[1730611305443,1.4959401,68606.0,68605.0,0.001648]
[1730611305654,1.49569664,68606.0,68605.0,0.001648]
[1730611306092,1.57436487,68606.0,68605.0,0.001648]
[1730611306724,1.57436473,68606.0,68605.0,0.001648]
[1730611307558,1.57436598,68606.0,68605.0,0.001648]
[1730611310806,1.70481843,68606.0,68605.0,0.001648]
[1730611311220,1.57436598,68606.0,68605.0,0.001648]
[1730611311620,1.70481843,68606.0,68605.0,0.001648]
[1730611312075,1.57436598,68606.0,68605.0,0.001648]
[1730611312317,1.70481843,68606.0,68605.0,0.001648]
[1730611313623,1.57436598,68606.0,68605.0,0.001648]
[1730611313771,1.49569775,68606.0,68605.0,0.001648]
[1730611313968,1.57436598,68606.0,68605.0,0.001648]
[1730611316108,1.47438704,68606.0,68605.0,0.001648]
[1730611316363,1.46075981,68606.0,68605.0,0.001648]
[1730611316554,1.47439465,68606.0,68605.0,0.001648]
[1730611318614,1.47440339,68606.0,68605.0,0.001648]
[1730611319636,1.47495923,68606.0,68605.0,0.001648]
[1730611319862,1.39735923,68606.0,68605.0,0.001648]
[1730611320270,1.34905923,68606.0,68605.0,0.001648]
[1730611322166,1.25674742,68606.0,68605.0,0.001648]
[1730611322382,1.34906446,68606.0,68605.0,0.001648]
[1730611322601,0.012,68599.0,68598.0,0.0107187]
[1730611322809,0.94892804,68599.0,68598.0,0.0107187]
[1730611323017,1.09966529,68599.0,68598.0,0.0107187]
[1730611323450,1.09466529,68599.0,68598.0,0.0107187]
[1730611323661,1.09966529,68599.0,68598.0,0.0107187]
[1730611323882,1.26449103,68599.0,68598.0,0.0107187]
[1730611326059,1.25084222,68599.0,68598.0,0.0107187]
[1730611327746,1.38170789,68599.0,68598.0,0.0107187]
[1730611329719,1.25094235,68599.0,68598.0,0.0107187]
[1730611330359,1.29834235,68599.0,68598.0,0.0107187]
[1730611330575,1.21959811,68599.0,68598.0,0.0107187]
[1730611330787,1.23324174,68599.0,68598.0,0.0107187]
[1730611331440,1.22424174,68599.0,68598.0,0.0107187]
[1730611331656,1.36139442,68599.0,68598.0,0.0107187]
[1730611331904,1.22824174,68599.0,68598.0,0.0107187]
[1730611332120,1.36175079,68599.0,68598.0,0.0107187]
[1730611332333,1.36532368,68599.0,68598.0,0.0107187]
[1730611332992,1.39296603,68599.0,68598.0,0.0107187]
[1730611333649,0.157798,68588.0,68587.0,0.001648]
[1730611333850,1.13498522,68588.0,68587.0,0.001648]
[1730611334000,1.26590392,68588.0,68587.0,0.001648]
[1730611335694,1.14898522,68588.0,68587.0,0.001648]
[1730611335896,1.05631699,68588.0,68587.0,0.001648]
[1730611336106,1.21094195,68588.0,68587.0,0.001648]
[1730611336318,1.30361018,68588.0,68587.0,0.001648]
[1730611336532,1.22494195,68588.0,68587.0,0.001648]
[1730611336756,1.22622568,68588.0,68587.0,0.001648]
[1730611337413,1.32622568,68588.0,68587.0,0.001648]
[1730611337950,1.32422568,68588.0,68587.0,0.001648]
[1730611338182,1.29622568,68588.0,68587.0,0.001648]
[1730611338403,1.32422568,68588.0,68587.0,0.001648]
[1730611338619,1.31022568,68588.0,68587.0,0.001648]
[1730611338822,1.29622568,68588.0,68587.0,0.001648]
[1730611339055,1.31022568,68588.0,68587.0,0.001648]
[1730611339271,1.31222568,68588.0,68587.0,0.001648]
[1730611339711,1.16760072,68588.0,68587.0,0.001648]
[1730611340137,1.18160072,68588.0,68587.0,0.048248]
[1730611341677,1.18152915,68588.0,68587.0,0.048248]
[1730611342371,1.18352915,68588.0,68587.0,0.048248]
[1730611342817,1.1678868,68588.0,68587.0,0.048248]
[1730611343003,1.32733687,68588.0,68587.0,0.048248]
[1730611346101,1.32726174,68588.0,68587.0,0.048248]
[1730611346322,1.32926174,68588.0,68587.0,0.001648]
[1730611346545,1.32724743,68588.0,68587.0,0.001648]
[1730611347843,1.31324743,68588.0,68587.0,0.001648]
[1730611348254,1.32724743,68588.0,68587.0,0.001648]
[1730611348522,1.08875346,68588.0,68587.0,0.076948]
[1730611348742,1.19266832,68588.0,68587.0,0.076948]
[1730611348965,1.09775346,68588.0,68587.0,0.123548]
[1730611349180,1.32224743,68588.0,68587.0,0.123548]
[1730611349396,1.32724743,68588.0,68587.0,0.123548]
[1730611349609,1.32224743,68588.0,68587.0,0.123548]
[1730611350714,1.32275612,68588.0,68587.0,0.123548]
[1730611351766,1.43166348,68588.0,68587.0,0.123548]
[1730611351976,1.28583774,68588.0,68587.0,0.123548]
[1730611352185,1.18193038,68588.0,68587.0,0.123548]
[1730611352407,1.17693038,68588.0,68587.0,0.123548]
[1730611352625,1.28583774,68588.0,68587.0,0.123548]
[1730611353066,1.32775612,68588.0,68587.0,0.123548]
[1730611353537,1.43666348,68588.0,68587.0,0.123548]
[1730611355541,1.43654789,68588.0,68587.0,0.123548]
[1730611356635,1.32764144,68588.0,68587.0,0.001648]
[1730611360199,1.3272223,68588.0,68587.0,0.001648]
[1730611360636,1.3292223,68588.0,68587.0,0.001648]
[1730611361312,1.31559529,68588.0,68587.0,0.001648]
[1730611361531,1.4078921,68588.0,68587.0,0.001648]
[1730611361735,1.4576921,68588.0,68587.0,0.001648]
[1730611362694,1.45769173,68588.0,68587.0,0.001648]
[1730611363134,1.45769173,68588.0,68559.0,0.005]
[1730611363135,0.150838,68569.0,68568.0,0.0466]
[1730611363355,0.150838,68569.0,68567.0,0.0753]
[1730611363356,0.15084,68568.0,68567.0,0.0753]
[1730611363576,0.29663704,68568.0,68567.0,0.0753]
[1730611363803,0.81991525,68568.0,68567.0,0.0753]
[1730611364653,0.87557465,68568.0,68567.0,0.0753]
[1730611365766,0.87857465,68568.0,68567.0,0.0753]
[1730611367098,0.88257465,68568.0,68567.0,0.0753]
[1730611370720,0.82691525,68568.0,68567.0,0.0753]
[1730611371588,0.82691525,68568.0,68567.0,0.076119]
[1730611375439,0.81328704,68568.0,68567.0,0.076119]
[1730611375644,0.82688712,68568.0,68567.0,0.076119]
[1730611375848,0.81328704,68568.0,68567.0,0.076119]
[1730611376054,0.82688518,68568.0,68567.0,0.076119]
[1730611378346,0.82388518,68568.0,68567.0,0.076119]
[1730611378767,0.82688518,68568.0,68567.0,0.076119]
[1730611379202,0.82388518,68568.0,68567.0,0.076119]
[1730611379640,0.82688518,68568.0,68567.0,0.076119]
[1730611381645,0.81328704,68568.0,68567.0,0.000819]
[1730611381860,0.82688298,68568.0,68567.0,0.000819]
[1730611382081,0.82388298,68568.0,68567.0,0.000819]
[1730611382518,0.82788298,68568.0,68567.0,0.000819]
[1730611383128,0.82388298,68568.0,68567.0,0.000819]
[1730611383354,0.83188298,68568.0,68567.0,0.000819]
[1730611383565,0.82788298,68568.0,68567.0,0.000819]
[1730611383779,0.97870872,68568.0,68567.0,0.000819]
[1730611384001,0.67708594,68568.0,68567.0,0.000819]
[1730611384455,0.68608594,68568.0,68567.0,0.000819]
[1730611385330,0.68608939,68568.0,68567.0,0.000819]
[1730611385543,0.67249,68568.0,68567.0,0.000819]
[1730611385744,0.68609231,68568.0,68567.0,0.000819]
[1730611389109,0.9721999,68568.0,68567.0,0.000819]
[1730611392952,0.97222102,68568.0,68567.0,0.000819]
[1730611395428,0.68611343,68568.0,68567.0,0.000819]
[1730611397525,0.68611444,68568.0,68567.0,0.000819]
[1730611399049,0.68611444,68568.0,68567.0,0.127419]
[1730611399643,0.68611444,68568.0,68567.0,0.078819]
[1730611404562,0.68611444,68568.0,68567.0,0.000819]
[1730611406497,0.67249,68568.0,68567.0,0.000819]
[1730611406711,0.68611025,68568.0,68567.0,0.000819]
[1730611406930,0.67249,68568.0,68567.0,0.000819]
[1730611407148,0.68611023,68568.0,68567.0,0.000819]
[1730611407588,0.54027023,68568.0,68567.0,0.000819]
[1730611407774,0.54027023,68568.0,68567.0,0.269861]
[1730611408468,0.54027023,68568.0,68567.0,0.27702181]
[1730611408772,0.53127023,68568.0,68567.0,0.27702181]
[1730611409312,0.52327023,68568.0,68567.0,0.27702181]
[1730611409518,0.52327023,68568.0,68567.0,0.27802181]
[1730611409949,0.50965,68568.0,68567.0,0.27802181]
[1730611410158,0.52326625,68568.0,68567.0,0.27702181]
[1730611410394,0.52326625,68568.0,68567.0,0.001819]
[1730611410828,0.52326419,68568.0,68567.0,0.147661]
[1730611411811,0.52426419,68568.0,68567.0,0.147661]
[1730611412235,0.52426419,68568.0,68567.0,0.000819]
[1730611412673,0.52426354,68568.0,68567.0,0.000819]
[1730611413523,0.67010354,68568.0,68567.0,0.000819]
[1730611415467,0.52426354,68568.0,68567.0,0.047819]
[1730611417361,0.52426167,68568.0,68567.0,0.047819]
[1730611417576,0.51065,68568.0,68567.0,0.047819]
[1730611417811,0.52426169,68568.0,68567.0,0.047819]
[1730611418035,0.52426176,68568.0,68567.0,0.047819]
[1730611418481,0.52426165,68568.0,68567.0,0.047819]
[1730611419809,0.52426165,68568.0,68567.0,0.000819]
[1730611420864,0.67010165,68568.0,68567.0,0.000819]
[1730611421069,0.65649,68568.0,68567.0,0.000819]
[1730611421287,0.67010145,68568.0,68567.0,0.000819]
[1730611422953,0.80490249,68568.0,68567.0,0.000819]
[1730611424431,0.79129104,68568.0,68567.0,0.000819]
[1730611424678,0.80490569,68568.0,68567.0,0.000819]
[1730611426775,0.80490812,68568.0,68567.0,0.000819]
[1730611427806,0.67010755,68568.0,68567.0,0.000819]
[1730611430613,0.71368746,68568.0,68567.0,0.000819]
[1730611433785,0.7136904,68568.0,68567.0,0.000819]
[1730611435222,0.70007285,68568.0,68567.0,0.000819]
[1730611435620,0.7136904,68568.0,68567.0,0.000819]
[1730611435852,0.85951614,68568.0,68567.0,0.000819]
[1730611436220,0.7136904,68568.0,68567.0,0.000819]
[1730611438475,1.08934709,68568.0,68567.0,0.000819]
[1730611439219,1.08934643,68568.0,68567.0,0.000819]
[1730611440990,1.02397216,68568.0,68567.0,0.000819]
[1730611441620,1.08933669,68568.0,68567.0,0.000819]
[1730611442097,1.17538306,68568.0,68567.0,0.000819]
[1730611443856,1.09671483,68568.0,68567.0,0.000819]
[1730611444742,1.0967135,68568.0,68567.0,0.000819]
[1730611446322,1.18092806,68568.0,68567.0,0.000819]
[1730611446541,1.28982477,68568.0,68567.0,0.000819]
[1730611446744,1.18292806,68568.0,68567.0,0.000819]
[1730611446972,1.18092806,68568.0,68567.0,0.000819]
[1730611447618,1.17992806,68568.0,68567.0,0.000819]
[1730611447831,1.19392806,68568.0,68567.0,0.000819]
[1730611448288,1.19692806,68568.0,68567.0,0.000819]
[1730611448721,1.19392806,68568.0,68567.0,0.000819]
[1730611448945,1.19391575,68568.0,68567.0,0.000819]
[1730611449364,1.20791575,68568.0,68567.0,0.000819]
[1730611450278,1.20991575,68568.0,68567.0,0.000819]
[1730611450495,1.20791575,68568.0,68567.0,0.000819]
[1730611450700,1.17991575,68568.0,68567.0,0.000819]
[1730611450931,1.17991575,68568.0,68558.0,0.00165]
[1730611450932,0.005,68559.0,68558.0,0.00165]
[1730611451146,0.005,68559.0,68547.0,0.000825]
[1730611451147,0.22955123,68548.0,68547.0,0.000825]
[1730611451367,0.50334827,68548.0,68547.0,0.000825]
[1730611451591,1.18245372,68548.0,68547.0,0.000825]
[1730611451801,1.3279287,68548.0,68547.0,0.000825]
[1730611452037,1.24097068,68548.0,68547.0,0.000825]
[1730611452453,1.15892819,68548.0,68547.0,0.000825]
[1730611452682,1.23759642,68548.0,68547.0,0.000825]
[1730611453123,1.23756457,68548.0,68547.0,0.000825]
[1730611453371,1.21581811,68548.0,68547.0,0.000825]
[1730611453585,1.27504671,68548.0,68547.0,0.000825]
[1730611454016,1.28004671,68548.0,68547.0,0.000825]
[1730611454228,1.27504671,68548.0,68547.0,0.000825]
[1730611454446,1.23162401,68548.0,68547.0,0.000825]
[1730611454657,1.03513004,68548.0,68547.0,0.000825]
[1730611455068,1.11379827,68548.0,68547.0,0.000825]
[1730611455287,1.22736912,68548.0,68547.0,0.000825]
[1730611456812,1.18579827,68548.0,68547.0,0.000825]
[1730611457034,1.33162401,68548.0,68547.0,0.000825]
[1730611457258,1.35962401,68548.0,68547.0,0.000825]
[1730611460718,1.36162401,68548.0,68547.0,0.000825]
[1730611461168,1.37517081,68548.0,68547.0,0.000825]
[1730611463164,1.36162401,68548.0,68547.0,0.000825]
[1730611463610,1.35962401,68548.0,68547.0,0.000825]
[1730611471685,1.21379827,68548.0,68547.0,0.000825]
[1730611477580,1.08579827,68548.0,68547.0,0.000825]
[1730611479952,1.08779827,68548.0,68547.0,0.000825]
[1730611481377,1.13529827,68548.0,68547.0,0.000825]
[1730611485896,1.17874988,68548.0,68547.0,0.000825]
[1730611486072,1.36352401,68548.0,68547.0,0.000825]
[1730611486264,1.4069755,68548.0,68547.0,0.000825]
[1730611487804,1.45035861,68548.0,68547.0,0.000825]
[1730611488469,1.4069755,68548.0,68547.0,0.000825]
[1730611489413,1.47205017,68548.0,68547.0,0.000825]
[1730611490241,1.64250228,68548.0,68547.0,0.000825]
[1730611491265,1.55573605,68548.0,68547.0,0.000825]
[1730611492322,1.66419383,68548.0,68547.0,0.000825]
[1730611492548,1.55585179,68548.0,68547.0,0.000825]
[1730611493093,1.66449573,68548.0,68547.0,0.000825]
[1730611493308,1.55585179,68548.0,68547.0,0.000825]
[1730611496575,1.47593023,68548.0,68547.0,0.000825]
[1730611496937,1.34728356,68548.0,68547.0,0.000825]
[1730611497140,1.42595179,68548.0,68547.0,0.000825]
[1730611497360,1.55659846,68548.0,68547.0,0.000825]
[1730611500158,1.55659846,68548.0,68547.0,0.00070676]
[1730611501851,1.41077272,68548.0,68547.0,0.00070676]
[1730611504663,1.33010449,68548.0,68547.0,0.00070676]
[1730611504884,1.15600633,68548.0,68547.0,0.00070676]
[1730611506444,0.90520929,68548.0,68547.0,0.12870676]
[1730611506916,0.82168142,68548.0,68547.0,0.12870676]
[1730611507162,0.756333,68548.0,68547.0,0.12870676]
[1730611507375,0.742333,68548.0,68547.0,0.12870676]
[1730611508027,0.756333,68548.0,68547.0,0.12870676]
[1730611508461,0.742333,68548.0,68547.0,0.12870676]
[1730611508587,0.752333,68548.0,68547.0,0.12870676]
[1730611508806,0.738333,68548.0,68547.0,0.12870676]
[1730611509414,0.747333,68548.0,68547.0,0.12870676]
[1730611515168,0.60145,68548.0,68547.0,0.12870676]
[1730611515626,0.60145,68548.0,68547.0,0.27459176]
[1730611518143,0.60145,68548.0,68547.0,0.27750921]
[1730611518334,0.60145,68548.0,68547.0,0.27459176]
[1730611518859,0.60145,68548.0,68547.0,0.27959176]
[1730611519060,0.58245,68548.0,68547.0,0.27959176]
[1730611519319,0.58245,68548.0,68547.0,0.28059176]
[1730611519764,0.58245,68548.0,68547.0,0.27959176]
[1730611520203,0.58245,68548.0,68547.0,0.28059176]
[1730611521463,0.58245,68548.0,68547.0,0.28159176]
[1730611522082,0.58245,68548.0,68547.0,0.28059176]
[1730611522306,0.58245,68548.0,68547.0,0.27959176]
[1730611522520,0.58245,68548.0,68547.0,0.28159176]
[1730611522722,0.58245,68548.0,68547.0,0.28359176]
[1730611524136,0.584088,68548.0,68547.0,0.28359176]
[1730611524342,0.584088,68548.0,68547.0,0.28159176]
[1730611524541,0.584088,68548.0,68547.0,0.28259176]
[1730611524891,0.584088,68548.0,68547.0,0.27959176]
[1730611525090,0.584088,68548.0,68547.0,0.28259176]
[1730611525711,0.584088,68548.0,68547.0,0.28059176]
[1730611525920,0.584088,68548.0,68547.0,0.28259176]
[1730611536369,0.59769215,68548.0,68547.0,0.28259176]
[1730611537888,0.59769215,68548.0,68547.0,0.28974002]
[1730611538535,0.59769215,68548.0,68547.0,0.28259176]
[1730611539402,0.59769215,68548.0,68547.0,0.28975101]
[1730611539838,0.59769701,68548.0,68547.0,0.28975101]
[1730611541408,0.5976993,68548.0,68547.0,0.28975101]
[1730611542267,0.67205653,68548.0,68547.0,0.01586601]
[1730611542487,0.94843953,68548.0,68547.0,0.00370676]
[1730611543161,0.94843953,68548.0,68547.0,0.00170676]
[1730611543381,0.93482823,68548.0,68547.0,0.00170676]
[1730611543811,0.94843965,68548.0,68547.0,0.00170676]
[1730611544036,0.95143965,68548.0,68547.0,0.00070676]
[1730611544248,0.96243965,68548.0,68547.0,0.00070676]
[1730611544456,0.95943965,68548.0,68547.0,0.00070676]
[1730611544889,0.96943965,68548.0,68547.0,0.00070676]
[1730611547293,0.96943832,68548.0,68547.0,0.00070676]
[1730611548457,0.89508109,68548.0,68547.0,0.00070676]
[1730611550905,0.89507887,68548.0,68547.0,0.00070676]
[1730611551339,0.89507897,68548.0,68547.0,0.00070676]
[1730611554209,0.76457897,68548.0,68547.0,0.00070676]
[1730611557814,0.750971,68548.0,68547.0,0.00070676]
[1730611558209,0.76458356,68548.0,68547.0,0.00070676]
[1730611560170,0.61870056,68548.0,68547.0,0.00070676]
[1730611560837,0.61870056,68548.0,68547.0,0.19569176]
[1730611561429,0.618708,68548.0,68547.0,0.19569176]
[1730611561731,0.607708,68548.0,68547.0,0.19569176]
[1730611562138,0.597708,68548.0,68547.0,0.19569176]
[1730611562705,0.597708,68548.0,68547.0,0.19869176]
[1730611564316,0.59771391,68548.0,68547.0,0.19869176]
[1730611566878,0.59771391,68548.0,68547.0,0.36087733]
[1730611567034,0.59771391,68548.0,68547.0,0.35795999]
[1730611568029,0.59771391,68548.0,68547.0,0.37011992]
[1730611568231,0.59771391,68548.0,68547.0,0.36295999]
[1730611569393,0.59771391,68548.0,68547.0,0.28429176]
[1730611570215,0.59771391,68548.0,68547.0,0.27929176]
[1730611570417,0.59771391,68548.0,68547.0,0.28429176]
[1730611571241,0.59772131,68548.0,68547.0,0.28429176]
[1730611571647,0.59772131,68548.0,68547.0,0.27929176]
[1730611571869,0.59772131,68548.0,68547.0,0.28429176]
[1730611574717,0.584088,68548.0,68547.0,0.28429176]
[1730611574937,0.59772125,68548.0,68547.0,0.28429176]
[1730611575593,0.59772125,68548.0,68547.0,0.36295999]
[1730611581587,0.59772125,68548.0,68547.0,0.37011814]
[1730611581794,0.584088,68548.0,68547.0,0.36295999]
[1730611582022,0.59772426,68548.0,68547.0,0.36295999]
[1730611582438,0.59772426,68548.0,68547.0,0.37011814]
[1730611582668,0.59772426,68548.0,68547.0,0.36295999]
[1730611583092,0.59772426,68548.0,68547.0,0.37011814]
[1730611585509,0.59772426,68548.0,68547.0,0.36295999]
[1730611585705,0.584088,68548.0,68547.0,0.36295999]
[1730611585943,0.59773055,68548.0,68547.0,0.23325999]
[1730611586152,0.59773055,68548.0,68547.0,0.24042293]
[1730611586352,0.59773055,68548.0,68547.0,0.1617547]
[1730611586559,0.584088,68548.0,68547.0,0.1617547]
[1730611587003,0.584088,68548.0,68547.0,0.15459176]
[1730611587465,0.597732,68548.0,68547.0,0.15459176]
[1730611587867,0.597732,68548.0,68547.0,0.14959176]
[1730611588068,0.597732,68548.0,68547.0,0.15459176]
[1730611592743,0.597732,68548.0,68547.0,0.16175543]
[1730611593328,0.584088,68548.0,68547.0,0.15459176]
[1730611598913,0.584088,68548.0,68547.0,0.16176313]
[1730611599528,0.59775306,68548.0,68547.0,0.16176313]
[1730611603340,0.584088,68548.0,68547.0,0.16176312]
[1730611603753,0.59775091,68548.0,68547.0,0.16176312]
[1730611604932,0.59775091,68548.0,68547.0,0.1617631]
[1730611606440,0.584088,68548.0,68547.0,0.15459176]
[1730611606758,0.59775195,68548.0,68547.0,0.16176307]
[1730611608347,0.584088,68548.0,68547.0,0.16176307]
[1730611608590,0.59775195,68548.0,68547.0,0.16176307]
[1730611609564,0.59775195,68548.0,68547.0,0.2404313]
[1730611610002,0.584088,68548.0,68547.0,0.23325999]
[1730611610211,0.5977515,68548.0,68547.0,0.24043128]
[1730611612351,0.5977515,68548.0,68547.0,0.16176305]
[1730611617420,0.584088,68548.0,68547.0,0.14959176]
[1730611617690,0.59775043,68548.0,68547.0,0.16176255]
[1730611623586,0.59775043,68548.0,68547.0,0.16176151]
[1730611624016,0.59775043,68548.0,68547.0,0.15676151]
[1730611624266,0.59775043,68548.0,68547.0,0.16176151]
[1730611627115,0.86753343,68548.0,68547.0,0.01087651]
[1730611627341,0.86753343,68548.0,68547.0,0.00370676]
[1730611627540,0.86752834,68548.0,68547.0,0.00370676]
[1730611628246,0.86752834,68548.0,68547.0,0.00170676]
[1730611628460,0.86752834,68548.0,68547.0,0.00370676]
[1730611628891,0.86752834,68548.0,68547.0,0.00170676]
[1730611629137,0.86752834,68548.0,68547.0,0.00070676]
[1730611629353,0.72364534,68548.0,68547.0,0.00070676]
[1730611629570,0.86952834,68548.0,68547.0,0.00070676]
[1730611629785,0.86752834,68548.0,68547.0,0.00070676]
[1730611629996,0.87152834,68548.0,68547.0,0.00070676]
[1730611630202,0.72564534,68548.0,68547.0,0.14659176]
[1730611630414,0.72564534,68548.0,68547.0,0.00070676]
[1730611630632,0.64714534,68548.0,68547.0,0.00070676]
[1730611630846,0.64914534,68548.0,68547.0,0.00070676]
[1730611631272,0.64913235,68548.0,68547.0,0.14659176]
[1730611631484,0.64713235,68548.0,68547.0,0.14659176]
[1730611631728,0.64713235,68548.0,68547.0,0.00070676]
[1730611631958,0.65013235,68548.0,68547.0,0.00070676]
[1730611640510,0.95008358,68548.0,68547.0,0.00070676]
[1730611642318,0.87141535,68548.0,68547.0,0.00070676]
[1730611644322,0.95008358,68548.0,68547.0,0.00070676]
[1730611644555,1.10088062,68548.0,68547.0,0.00070676]
[1730611644784,1.43457852,68548.0,68547.0,0.00070676]
[1730611644993,1.45640538,68548.0,68547.0,0.00070676]
[1730611645429,1.41793417,68548.0,68547.0,0.00070676]
[1730611645642,1.45338044,68548.0,68547.0,0.00070676]
[1730611645858,1.60320629,68548.0,68547.0,0.00070676]
[1730611646065,1.59920629,68548.0,68547.0,0.00070676]
[1730611646300,1.60220629,68548.0,68547.0,0.00070676]
[1730611646719,1.71824979,68548.0,68547.0,0.00070676]
[1730611646930,1.73224979,68548.0,68547.0,0.00070676]
[1730611647201,1.71824979,68548.0,68547.0,0.00070676]
[1730611647468,1.70424979,68548.0,68547.0,0.00070676]
[1730611647685,1.71824979,68548.0,68547.0,0.00070676]
[1730611647905,0.150906,68537.0,68536.0,0.000825]
[1730611648119,1.04356765,68537.0,68536.0,0.000825]
[1730611649207,1.04956765,68537.0,68536.0,0.000825]
[1730611649633,1.04356765,68537.0,68536.0,0.000825]
[1730611650064,1.05256765,68537.0,68536.0,0.000825]
[1730611650703,1.06356765,68537.0,68536.0,0.000825]
[1730611652012,1.10713208,68537.0,68536.0,0.000825]
[1730611652698,1.06349629,68537.0,68536.0,0.000825]
[1730611652902,1.04349629,68537.0,68536.0,0.000825]
[1730611653282,1.07149629,68537.0,68536.0,0.000825]
[1730611653550,1.21732203,68537.0,68536.0,0.000825]
[1730611656698,1.21730542,68537.0,68536.0,0.000825]
[1730611659857,1.18194701,68537.0,68536.0,0.000825]
[1730611659995,1.21728257,68537.0,68536.0,0.000825]
[1730611663407,1.18194701,68537.0,68536.0,0.000825]
[1730611663652,1.21728544,68537.0,68536.0,0.000825]
[1730611667235,1.21729302,68537.0,68536.0,0.000825]
[1730611667465,1.07146728,68537.0,68536.0,0.000825]
[1730611667903,1.03612127,68537.0,68536.0,0.000825]
[1730611668120,1.07147391,68537.0,68536.0,0.000825]
[1730611670555,1.03612127,68537.0,68536.0,0.000825]
[1730611670766,1.09621256,68537.0,68536.0,0.000825]
[1730611671175,1.07150556,68537.0,68536.0,0.000825]
[1730611674200,1.07155552,68537.0,68536.0,0.000825]
[1730611674414,0.99615552,68537.0,68536.0,0.000825]
[1730611677562,0.99620027,68537.0,68536.0,0.000825]
[1730611680881,0.99621909,68537.0,68536.0,0.000825]
[1730611681100,1.14204483,68537.0,68536.0,0.000825]
[1730611681750,1.10654701,68537.0,68536.0,0.000825]
[1730611681970,1.14204953,68537.0,68536.0,0.000825]
[1730611682604,1.22324953,68537.0,68536.0,0.000825]
[1730611683226,0.22958923,68530.0,68529.0,0.0098957]
[1730611683426,0.92053879,68530.0,68529.0,0.0098957]
[1730611683630,1.03555741,68530.0,68529.0,0.0098957]
[1730611684056,0.92053879,68530.0,68529.0,0.0098957]
[1730611684277,0.92053886,68530.0,68529.0,0.0098957]
[1730611684497,0.92853886,68530.0,68529.0,0.0098957]
[1730611685270,0.93753886,68530.0,68529.0,0.0098957]
[1730611685915,0.70807359,68530.0,68529.0,0.0098957]
[1730611687539,0.85389933,68530.0,68529.0,0.0098957]
[1730611687970,0.97719933,68530.0,68529.0,0.0098957]
[1730611688830,0.96919933,68530.0,68529.0,0.0098957]
[1730611689274,0.97419933,68530.0,68529.0,0.0098957]
[1730611689478,0.76467359,68530.0,68529.0,0.0098957]
[1730611689683,0.76254981,68530.0,68529.0,0.0098957]
[1730611689896,0.71907359,68530.0,68529.0,0.0098957]
[1730611690317,0.76254981,68530.0,68529.0,0.0098957]
[1730611690767,0.78428792,68530.0,68529.0,0.0098957]
[1730611690968,0.88292621,68530.0,68529.0,0.0098957]
[1730611691376,0.78428792,68530.0,68529.0,0.0098957]
[1730611692268,0.76244017,68530.0,68529.0,0.0098957]
[1730611692474,0.76244196,68530.0,68529.0,0.0098957]
[1730611692676,0.69722763,68530.0,68529.0,0.0098957]
[1730611693574,0.93662107,68530.0,68529.0,0.0098957]
[1730611695740,0.84966863,68530.0,68529.0,0.0098957]
[1730611696159,0.93706544,68530.0,68529.0,0.0098957]
[1730611696366,0.93706575,68530.0,68529.0,0.0098957]
[1730611696564,0.84966863,68530.0,68529.0,0.0098957]
[1730611698440,0.84966992,68530.0,68529.0,0.0098957]
[1730611698853,0.84966989,68530.0,68529.0,0.0098957]
[1730611701473,0.87152293,68530.0,68529.0,0.0098957]
[1730611704952,0.71908193,68530.0,68529.0,0.0098957]
[1730611705354,0.69722889,68530.0,68529.0,0.0098957]
[1730611705565,0.69723112,68530.0,68529.0,0.0098957]
[1730611705782,0.69723116,68530.0,68529.0,0.0098957]
[1730611707398,0.71908774,68530.0,68529.0,0.0098957]